bitfinex-derivatives/quotes_SOLF0:USTF0_20260129
["timestamp","ask_amount","ask_price","bid_price","bid_amount"]
[1769646597904,3.36082282,124.98,124.94,1.97096192]
[1769646598811,3.36082282,125.0,124.96,1.97096192]
[1769646600714,3.36082282,125.0,124.97,1.97096192]
[1769646601110,3.36082282,125.0,124.96,1.97096192]
[1769646601311,10.57122282,125.0,124.91,112.2392]
[1769646601611,3.36082282,124.99,124.95,1.97096192]
[1769646602710,3.36082282,124.98,124.94,1.97096192]
[1769646603515,3.36082282,124.98,124.93,1.97096192]
[1769646604412,3.36082282,124.98,124.94,1.97096192]
[1769646604807,3.36082282,125.0,124.95,1.97096192]
[1769646605012,3.36082282,125.0,124.96,1.97096192]
[1769646605413,10.57142282,125.0,124.96,1.97096192]
[1769646605616,10.57142282,125.0,124.95,1.97096192]
[1769646607516,3.36082282,125.0,124.97,1.97096192]
[1769646607712,3.36082282,125.02,124.97,1.97096192]
[1769646608217,3.36082282,125.02,124.98,1.97096192]
[1769646608515,10.82637374,125.04,124.99,1.97096192]
[1769646608822,3.36082282,125.04,124.99,1.97096192]
[1769646609013,7.46555092,125.05,124.98,1.97096192]
[1769646609014,3.36082282,125.02,124.98,1.97096192]
[1769646609717,3.36082282,125.02,124.97,5.45346625]
[1769646610611,3.36082282,125.02,124.98,1.97096192]
[1769646610811,3.36082282,125.04,124.99,1.97096192]
[1769646611820,3.36082282,125.04,124.98,1.97096192]
[1769646612122,3.36082282,125.04,124.96,3.48250433]
[1769646612123,3.36082282,125.03,124.97,1.97096192]
[1769646612618,5.33178474,125.03,124.97,1.97096192]
[1769646613518,7.2093,125.02,124.97,1.97096192]
[1769646613913,3.36082282,125.03,124.97,5.45346625]
[1769646614109,3.36082282,125.03,124.98,1.97096192]
[1769646614320,3.36082282,125.05,124.99,1.97096192]
[1769646615108,10.56892282,125.04,124.99,1.97096192]
[1769646619218,3.36082282,125.04,125.0,1.97096192]
[1769646619624,3.36082282,125.06,125.01,5.45346625]
[1769646619925,3.36082282,125.06,125.02,1.97096192]
[1769646620513,3.36082282,125.08,125.03,1.97096192]
[1769646621328,10.56672282,125.08,125.02,5.45346625]
[1769646621529,10.56672282,125.08,125.02,5.44986584]
[1769646623931,7.2064,125.07,125.02,5.44986584]
[1769646624830,7.2064,125.07,125.02,3.48250433]
[1769646625539,12.67333994,125.07,125.02,3.48250433]
[1769646627741,10.70597843,125.07,125.02,3.48250433]
[1769646628335,10.58387771,125.06,125.0,3.28473921]
[1769646628531,3.37687771,125.05,125.0,3.28473921]
[1769646628733,5.34423922,125.03,124.98,23.28473921]
[1769646628940,5.34423922,125.02,124.96,10.49693921]
[1769646629544,12.55353922,125.02,124.96,3.28473921]
[1769646629942,1.96736151,125.01,124.96,3.28473921]
[1769646630135,5.34423922,125.01,124.96,3.28473921]
[1769646630342,1.96736151,125.0,124.94,12.46590072]
[1769646630538,1.96736151,125.0,124.94,10.49853921]
[1769646631840,1.96736151,125.0,124.95,7.2132]
[1769646632146,1.96736151,125.0,124.95,10.49793921]
[1769646632543,9.17666151,125.02,124.96,3.28473921]
[1769646632738,12.55293922,125.03,124.97,3.28473921]
[1769646633138,12.55293922,125.03,124.97,5.25210072]
[1769646633343,5.34423922,125.03,124.97,12.46420072]
[1769646634136,12.55183922,125.05,125.0,3.28473921]
[1769646636848,1.96736151,125.04,124.99,7.2109]
[1769646637449,1.96736151,125.04,124.99,10.49563921]
[1769646638752,1.96736151,125.05,125.0,3.28473921]
[1769646639055,9.17426151,125.06,125.0,3.28473921]
[1769646639453,7.2075,125.05,125.0,3.28473921]
[1769646639651,9.17486151,125.05,125.0,3.28473921]
[1769646640152,7.2075,125.05,125.0,3.28473921]
[1769646640553,9.17486151,125.05,125.0,3.28473921]
[1769646641454,12.55173922,125.05,125.0,3.28473921]
[1769646642356,10.58437771,125.05,125.0,5.25210072]
[1769646644455,7.2075,125.05,125.01,3.28473921]
[1769646644751,5.34423922,125.07,125.01,3.28473921]
[1769646644752,7.2072,125.06,125.01,3.28473921]
[1769646644953,5.34423922,125.07,125.01,5.25210072]
[1769646645152,3.37687771,125.07,125.02,5.25210072]
[1769646645556,3.37687771,125.07,125.02,3.28473921]
[1769646646362,3.37687771,125.07,125.02,5.25210072]
[1769646648159,7.2058,125.08,125.03,3.28473921]
[1769646648358,10.58207771,125.09,125.04,3.28473921]
[1769646648662,5.34423922,125.09,125.04,3.28473921]
[1769646649360,3.37687771,125.09,125.04,3.28473921]
[1769646650056,3.37687771,125.09,125.03,1.96736151]
[1769646650248,5.34423922,125.09,125.03,1.96736151]
[1769646650452,7.206,125.08,125.03,1.96736151]
[1769646653770,3.37687771,125.09,125.03,12.46050072]
[1769646653964,5.34423922,125.09,125.03,12.46050072]
[1769646654165,3.37687771,125.09,125.03,12.46050072]
[1769646654565,10.58217771,125.09,125.03,12.46050072]
[1769646657969,12.54953922,125.09,125.03,10.49313921]
[1769646659367,3.26868502,125.07,125.01,12.56232029]
[1769646659570,3.26868502,125.07,125.02,3.38555878]
[1769646660266,9.17336151,125.08,125.02,12.56202029]
[1769646660566,7.206,125.08,125.02,12.56202029]
[1769646660867,7.206,125.08,125.03,3.38555878]
[1769646661571,9.17336151,125.08,125.03,3.38555878]
[1769646661773,12.44204653,125.08,125.03,3.38555878]
[1769646662361,112.0671,125.11,125.01,12.56262029]
[1769646662362,5.23604653,125.07,125.01,12.56262029]
[1769646663472,7.207,125.06,125.01,12.56262029]
[1769646665872,10.47568502,125.06,125.01,12.56262029]
[1769646666175,10.47568502,125.06,125.01,10.59525878]
[1769646666774,10.47618502,125.05,124.99,12.56332029]
[1769646667372,1.96736151,125.03,124.98,322.76555878]
[1769646667570,1.96736151,125.02,124.98,319.38]
[1769646667779,1.96736151,125.02,124.96,3.38555878]
[1769646668075,1.96736151,125.01,124.96,3.38555878]
[1769646669380,1.96736151,124.99,124.95,3.38555878]
[1769646669581,3.26868502,125.0,124.95,3.38555878]
[1769646669878,5.23604653,125.0,124.95,3.38555878]
[1769646670079,3.26868502,125.0,124.95,3.38555878]
[1769646670778,5.23604653,125.0,124.95,3.38555878]
[1769646674480,1.96736151,124.99,124.95,3.38555878]
[1769646675887,1.96736151,124.99,124.95,10.59875878]
[1769646676182,5.23604653,125.0,124.95,10.59875878]
[1769646678482,1.96736151,125.01,124.96,3.38555878]
[1769646679984,5.23604653,125.01,124.96,3.38555878]
[1769646680686,1.96736151,125.0,124.96,3.38555878]
[1769646680887,5.23604653,125.01,124.96,3.38555878]
[1769646681088,12.44584653,125.01,124.95,7.2132]
[1769646681288,12.44584653,125.01,124.95,3.38555878]
[1769646681289,1.96736151,125.0,124.95,3.38555878]
[1769646681586,1.97001521,125.0,124.95,3.38555878]
[1769646681786,5.23870023,125.0,124.95,3.38555878]
[1769646682188,5.23870023,124.99,124.93,3.38555878]
[1769646682590,5.23870023,124.98,124.93,3.38555878]
[1769646684492,12.45030023,124.98,124.93,3.38555878]
[1769646685593,10.48028502,124.98,124.93,3.38555878]
[1769646690094,10.48028502,124.98,124.92,9.18501521]
[1769646690397,3.27007549,124.96,124.91,12.62567368]
[1769646692106,7.2121,124.97,124.91,12.62567368]
[1769646692303,7.2121,124.97,124.92,3.44015847]
[1769646692505,7.2114,124.99,124.94,5.41017368]
[1769646692709,3.27007549,125.0,124.94,5.41017368]
[1769646694111,3.27007549,125.0,124.95,1.97001521]
[1769646694609,3.27007549,125.0,124.95,5.41017368]
[1769646695600,3.27007549,125.0,124.95,3.44015847]
[1769646696613,3.27007549,124.99,124.94,1.97001521]
[1769646696803,3.27007549,124.99,124.93,9.18441521]
[1769646697007,3.27007549,124.99,124.93,12.62457368]
[1769646697203,10.48107549,124.99,124.94,10.65395847]
[1769646697706,3.27007549,124.99,124.94,10.65395847]
[1769646698308,3.27007549,124.99,124.94,12.62397368]
[1769646699509,3.27007549,124.99,124.95,7.2132]
[1769646700707,3.27007549,124.99,124.95,9.18321521]
[1769646701313,3.27007549,124.99,124.95,1.97001521]
[1769646702015,3.27007549,124.99,124.94,5.41017368]
[1769646702410,3.27007549,124.99,124.94,12.62397368]
[1769646702716,3.27007549,124.98,124.93,1.97001521]
[1769646703015,3.27007549,124.98,124.92,5.41017368]
[1769646704306,10.48177549,124.98,124.92,12.62467368]
[1769646705014,10.48177549,124.98,124.93,1.97001521]
[1769646705612,5.2400907,125.0,124.94,3.44015847]
[1769646705813,3.27007549,125.0,124.95,1.97001521]
[1769646707513,10.48047549,125.0,124.95,1.97001521]
[1769646707714,3.27007549,124.99,124.94,5.41017368]
[1769646707911,10.48117549,124.99,124.94,3.44015847]
[1769646709222,10.48117549,124.99,124.94,5.41017368]
[1769646710422,3.27007549,124.98,124.93,7.2143]
[1769646710615,3.27007549,124.98,124.93,9.18431521]
[1769646711321,10.48167549,124.98,124.92,5.41017368]
[1769646711720,3.27007549,124.97,124.9,3.44015847]
[1769646711917,3.27007549,124.97,124.92,1.97001521]
[1769646712423,3.27007549,124.97,124.92,9.18481521]
[1769646713024,3.27007549,124.97,124.92,12.62497368]
[1769646717027,10.48217549,124.97,124.92,12.62497368]
[1769646717222,10.48217549,124.97,124.92,3.44015847]
[1769646717429,3.44807536,124.96,124.91,9.18551521]
[1769646717926,3.44807536,124.96,124.91,12.66485634]
[1769646720833,3.44807536,124.96,124.92,9.18501521]
[1769646721130,7.2121,124.97,124.92,9.18501521]
[1769646722418,10.66017536,124.97,124.91,12.66485634]
[1769646724228,3.44807536,124.95,124.91,1.97001521]
[1769646724532,3.44807536,124.95,124.9,9.18601521]
[1769646726431,3.44807536,124.94,124.89,3.47934113]
[1769646727731,3.44807536,124.94,124.89,5.44935634]
[1769646728731,3.44807536,124.94,124.89,12.66605634]
[1769646731242,1.97001521,124.96,124.91,3.47934113]
[1769646731243,10.66077536,124.96,124.91,3.47934113]
[1769646731542,5.41809057,124.98,124.92,3.47934113]
[1769646731837,9.28897132,124.98,124.92,5.44935634]
[1769646732435,7.2121,124.97,124.92,5.44935634]
[1769646732646,7.2121,124.97,124.93,1.97001521]
[1769646743543,7.2121,124.97,124.93,1.9704715]
[1769646744152,10.66017536,124.97,124.92,5.44981263]
[1769646744548,10.66017536,124.97,124.93,1.9704715]
[1769646744852,3.44807536,124.97,124.93,1.9704715]
[1769646745549,10.77519357,125.0,124.96,1.9704715]
[1769646745752,3.359358,125.0,124.96,1.9704715]
[1769646746460,3.359358,125.0,124.94,3.26796562]
[1769646746461,3.359358,125.0,124.95,1.9704715]
[1769646746749,10.569858,125.0,124.95,1.9704715]
[1769646746949,10.77519357,125.02,124.97,1.9704715]
[1769646747149,3.359358,125.02,124.97,1.9704715]
[1769646747845,10.569158,125.02,124.96,5.23843712]
[1769646748051,3.359358,125.02,124.96,5.23843712]
[1769646748354,3.359358,125.01,124.96,5.23843712]
[1769646748552,10.569158,125.01,124.96,3.26796562]
[1769646748847,3.47389066,125.0,124.94,5.23692725]
[1769646749251,3.47389066,124.99,124.94,5.23692725]
[1769646749451,3.47389066,124.99,124.94,3.26645575]
[1769646749846,10.68499066,124.99,124.94,3.26645575]
[1769646750753,10.68499066,124.99,124.94,5.23692725]
[1769646753757,3.47389066,124.98,124.93,1.9704715]
[1769646753950,3.47389066,124.98,124.92,12.45192725]
[1769646754350,7.2122,124.97,124.92,5.23692725]
[1769646754647,10.68609066,124.97,124.92,3.26645575]
[1769646754847,3.47389066,124.95,124.9,1.9704715]
[1769646755051,3.47389066,124.95,124.89,12.45322725]
[1769646756453,10.68719066,124.95,124.89,12.45322725]
[1769646757263,10.68719066,124.95,124.9,1.9704715]
[1769646758366,10.68719066,124.95,124.9,5.23692725]
[1769646758663,7.2127,124.96,124.91,5.23692725]
[1769646758965,3.47389066,124.98,124.92,1.9704715]
[1769646759165,7.2121,124.97,124.92,1.9704715]
[1769646759360,7.2121,124.97,124.93,1.9704715]
[1769646759758,7.2121,124.97,124.92,5.23692725]
[1769646759960,7.2121,124.97,124.93,1.9704715]
[1769646760766,7.2115,124.99,124.94,1.9704715]
[1769646761267,10.68539066,124.99,124.94,1.9704715]
[1769646761469,10.68549066,124.98,124.94,1.9704715]
[1769646761668,10.68549066,124.98,124.93,5.23692725]
[1769646765774,10.68549066,124.98,124.94,1.9704715]
[1769646765775,3.47389066,124.98,124.94,1.9704715]
[1769646767073,3.47389066,124.98,124.92,9.1854715]
[1769646767773,3.47389066,124.98,124.92,12.45192725]
[1769646768166,3.47389066,124.98,124.93,12.45132725]
[1769646768469,3.47389066,124.98,124.94,1.9704715]
[1769646768870,7.211,124.99,124.94,5.23692725]
[1769646769170,3.47389066,125.0,124.95,1.9704715]
[1769646770375,10.68439066,125.0,124.95,1.9704715]
[1769646770977,3.47389066,124.99,124.95,1.9704715]
[1769646771177,3.47389066,124.99,124.94,12.45022725]
[1769646772277,3.47389066,124.98,124.93,7.2144]
[1769646772476,3.47389066,124.98,124.93,5.23692725]
[1769646772777,10.68539066,124.98,124.93,3.26645575]
[1769646774474,10.68599066,124.97,124.92,9.1854715]
[1769646774780,10.68599066,124.97,124.92,1.9704715]
[1769646775278,3.36059414,124.96,124.91,32.45252725]
[1769646775577,3.36059414,124.96,124.91,12.45252725]
[1769646778181,3.36059414,124.95,124.89,12.46375014]
[1769646779482,1.9704715,124.96,124.9,10.49307864]
[1769646779676,11.14628876,124.97,124.9,12.46355014]
[1769646779980,5.33106564,124.97,124.9,12.46355014]
[1769646780381,10.57329414,124.96,124.9,12.46355014]
[1769646780675,10.57329414,124.96,124.9,5.24755014]
[1769646780880,10.57329414,124.96,124.91,7.2156]
[1769646782281,10.57329414,124.96,124.9,12.46365014]
[1769646783470,3.36059414,124.96,124.9,5.24755014]
[1769646783675,3.36059414,124.96,124.91,7.2154]
[1769646783879,3.36059414,124.96,124.9,5.24755014]
[1769646785380,10.57339414,124.96,124.9,12.46365014]
[1769646789985,10.57399414,124.95,124.9,5.24755014]
[1769646790185,10.57399414,124.95,124.9,3.27707864]
[1769646792783,3.36059414,124.95,124.9,12.46365014]
[1769646792985,7.2127,124.96,124.92,5.24755014]
[1769646793177,3.36059414,124.97,124.92,5.24755014]
[1769646793487,10.57279414,124.97,124.92,5.24755014]
[1769646793682,10.57279414,124.97,124.93,1.9704715]
[1769646794489,3.36059414,124.97,124.93,1.9704715]
[1769646797588,7.2117,124.98,124.94,1.9704715]
[1769646798089,10.57229414,124.98,124.94,1.9704715]
[1769646798284,3.36059414,125.0,124.94,5.24755014]
[1769646798484,3.36059414,125.0,124.95,1.9704715]
[1769646798785,3.36059414,125.0,124.96,1.9704715]
[1769646798987,3.36059414,125.02,124.98,1.9704715]
[1769646799387,3.36059414,125.02,124.97,1.9704715]
[1769646799886,16.38961782,125.04,125.0,1.9704715]
[1769646800082,10.56919414,125.04,125.0,1.9704715]
[1769646801390,10.56799414,125.06,125.01,1.9704715]
[1769646805795,10.56799414,125.06,125.01,1.96774547]
[1769646807487,10.42837261,125.08,125.02,1.96774547]
[1769646807694,10.42837261,125.08,125.03,1.96774547]
[1769646807892,3.22217261,125.07,125.03,1.96774547]
[1769646808900,10.42857261,125.07,125.03,1.96774547]
[1769646809200,10.42857261,125.07,125.02,1.96774547]
[1769646811196,10.42857261,125.07,125.03,1.96774547]
[1769646811593,3.22217261,125.07,125.04,1.96774547]
[1769646813303,3.22217261,125.07,125.03,1.96774547]
[1769646815299,3.22217261,125.07,125.04,1.96774547]
[1769646816592,10.42867261,125.07,125.04,1.96774547]
[1769646817099,10.42867261,125.07,125.04,4.547e-05]
[1769646817305,10.42867261,125.07,125.03,1.96774547]
[1769646819709,7.2069,125.06,125.03,1.96774547]
[1769646819910,7.2069,125.06,125.02,5.36930238]
[1769646820410,10.42857261,125.07,125.02,5.36930238]
[1769646820708,10.42857261,125.07,125.03,1.96774547]
[1769646823011,3.37045979,125.06,125.03,4.547e-05]
[1769646823205,3.37045979,125.06,125.02,1.96774547]
[1769646823611,10.57745979,125.06,125.01,1.96774547]
[1769646824910,10.57745979,125.06,125.02,1.96774547]
[1769646827226,3.37045979,125.03,124.98,7.211]
[1769646827519,3.37045979,125.03,124.99,1.96774547]
[1769646828622,10.57915979,125.03,124.99,1.96774547]
[1769646829224,10.57915979,125.03,124.98,12.58030238]
[1769646829422,10.57915979,125.03,124.99,1.96774547]
[1769646829815,10.57975979,125.02,124.97,1.96774547]
[1769646830418,3.37045979,125.01,124.96,12.58160238]
[1769646832221,3.37045979,125.01,124.97,1.96774547]
[1769646833725,10.58035979,125.01,124.97,1.96774547]
[1769646834229,10.58035979,125.01,124.96,5.36930238]
[1769646834428,3.37045979,125.0,124.95,321.38774547]
[1769646835529,3.37045979,125.0,124.95,324.90790081]
[1769646837032,3.37045979,125.0,124.95,332.12110081]
[1769646838029,10.58085979,125.0,124.95,319.42]
[1769646838230,12.54860526,125.0,124.95,319.42]
[1769646838628,5.33820526,125.0,124.95,319.42]
[1769646838836,12.68029852,124.99,124.93,10.73415534]
[1769646839128,5.46929852,124.98,124.91,328.64284547]
[1769646839333,12.68089852,124.98,124.91,324.94790081]
[1769646839834,12.68089852,124.98,124.92,3.52015534]
[1769646840036,12.68089852,124.98,124.92,10.73515534]
[1769646840222,10.71385305,124.97,124.91,322.98015534]
[1769646840427,1.96774547,124.96,124.91,322.98015534]
[1769646840632,12.68159852,124.97,124.91,322.98015534]
[1769646841324,12.68159852,124.97,124.91,330.19575534]
[1769646841934,10.71385305,124.97,124.91,332.16350081]
[1769646843933,10.71385305,124.97,124.92,1.96774547]
[1769646846536,10.71385305,124.97,124.92,5.48790081]
[1769646847334,10.71385305,124.97,124.93,1.96774547]
[1769646850044,10.71385305,124.97,124.92,5.48790081]
[1769646853143,3.50155305,124.97,124.92,12.70290081]
[1769646853638,5.46929852,124.99,124.93,3.52015534]
[1769646853838,3.50155305,124.99,124.95,1.96774547]
[1769646854041,3.50155305,125.01,124.95,5.48790081]
[1769646855345,10.71195305,125.0,124.95,5.48790081]
[1769646856844,10.71195305,125.0,124.95,3.52015534]
[1769646857145,10.71195305,125.0,124.95,5.48790081]
[1769646861847,3.50155305,125.0,124.95,12.70120081]
[1769646862042,3.50155305,125.02,124.97,5.48790081]
[1769646862450,3.50155305,125.02,124.97,3.52015534]
[1769646864253,3.50155305,125.0,124.95,10.73335534]
[1769646864452,3.50155305,125.0,124.96,1.96774547]
[1769646864852,10.71195305,125.0,124.96,1.96774547]
[1769646865752,10.71195305,125.0,124.95,12.70110081]
[1769646867764,10.71195305,125.0,124.95,12.70300898]
[1769646868253,10.71195305,125.0,124.95,5.48980898]
[1769646869651,3.29273382,124.99,124.95,1.96965364]
[1769646869856,3.29273382,124.99,124.94,9.18345364]
[1769646870358,10.50383382,124.99,124.94,1.96965364]
[1769646873050,3.29273382,125.01,124.95,3.44884617]
[1769646873248,3.29273382,125.01,124.96,1.96965364]
[1769646874361,7.2105,125.0,124.96,1.96965364]
[1769646874661,3.29273382,125.01,124.96,5.41849981]
[1769646874852,3.29273382,125.03,124.97,1.96965364]
[1769646876462,10.50203382,125.02,124.97,1.96965364]
[1769646879764,3.29273382,125.02,124.97,1.96965364]
[1769646879962,9.11591936,125.04,124.99,5.41849981]
[1769646880266,3.29273382,125.04,124.99,5.41849981]
[1769646880762,3.29273382,125.04,124.99,12.62939981]
[1769646881068,3.29273382,125.04,124.99,5.41849981]
[1769646882356,10.50083382,125.04,124.99,5.41849981]
[1769646883967,7.2081,125.04,125.0,3.44884617]
[1769646885166,3.29273382,125.03,124.99,1.96965364]
[1769646887868,3.29273382,125.03,124.98,12.62999981]
[1769646888375,7.2081,125.04,124.99,12.62949981]
[1769646888561,10.50083382,125.04,124.99,12.62949981]
[1769646892776,10.50083382,125.04,124.99,5.41849981]
[1769646893572,10.50163382,125.03,124.96,7.2122]
[1769646893774,10.50163382,125.03,124.98,1.96965364]
[1769646894369,10.50163382,125.03,124.98,5.41849981]
[1769646894568,3.29273382,125.03,124.99,1.96965364]
[1769646895971,7.2081,125.04,125.0,5.2328644]
[1769646896178,3.27268187,125.07,125.02,1.96965364]
[1769646896377,3.27268187,125.06,125.02,1.96965364]
[1769646896672,7.2065,125.07,125.02,5.2328644]
[1769646897073,3.27268187,125.07,125.02,5.2328644]
[1769646898278,7.2069,125.06,125.02,5.2328644]
[1769646900874,3.27268187,125.07,125.03,1.96965364]
[1769646901377,3.27268187,125.07,125.02,5.2328644]
[1769646901675,3.27268187,125.05,125.02,1.96965364]
[1769646901882,3.27268187,125.05,124.99,1.96965364]
[1769646902081,3.27268187,125.04,124.98,5.2328644]
[1769646902385,3.27268187,125.03,124.98,12.4443644]
[1769646903082,3.27268187,125.03,124.98,10.47471076]
[1769646904582,10.48138187,125.03,124.98,3.26321076]
[1769646904787,3.27268187,125.02,124.96,5.2328644]
[1769646905081,3.27268187,125.02,124.96,3.26321076]
[1769646905476,3.27268187,125.02,124.96,5.2328644]
[1769646906281,3.27268187,125.02,124.96,12.4449644]
[1769646906484,3.27268187,125.02,124.96,5.2328644]
[1769646908288,3.27268187,125.02,124.96,12.4454644]
[1769646908785,3.27268187,125.0,124.94,5.2328644]
[1769646909381,1.96965364,125.03,124.97,5.2328644]
[1769646909584,5.24233551,125.04,124.98,1.96965364]
[1769646910485,10.48138187,125.03,124.98,1.96965364]
[1769646910681,10.48138187,125.03,124.97,12.4449644]
[1769646911587,12.45103551,125.03,124.97,3.26321076]
[1769646912587,3.27268187,125.02,124.95,10.47651076]
[1769646912888,3.27268187,125.01,124.95,12.4461644]
[1769646913488,10.48248187,125.01,124.95,12.4461644]
[1769646913684,3.27268187,125.0,124.95,3.26321076]
[1769646913991,5.24233551,125.0,124.95,3.26321076]
[1769646914187,5.24233551,125.0,124.93,25.2328644]
[1769646914385,5.24233551,125.0,124.93,5.2328644]
[1769646915384,7.2113,124.99,124.93,12.4472644]
[1769646916194,9.18095364,124.99,124.93,12.4472644]
[1769646918797,12.45393551,124.98,124.93,3.26321076]
[1769646919697,5.24233551,124.97,124.92,10.47811076]
[1769646920199,5.24233551,124.97,124.9,5.2328644]
[1769646920200,3.27268187,124.96,124.9,5.2328644]
[1769646920406,5.24233551,124.96,124.9,5.2328644]
[1769646920803,3.27268187,124.96,124.9,3.26321076]
[1769646921202,5.24233551,124.95,124.88,14.2270396]
[1769646921406,5.24233551,124.94,124.88,12.25738596]
[1769646922312,12.45623551,124.94,124.88,12.25738596]
[1769646923706,3.27268187,124.93,124.88,12.25738596]
[1769646924614,5.24233551,124.93,124.88,12.25738596]
[1769646925705,112.2009,124.96,124.88,8.9941752]
[1769646925706,5.52778884,124.92,124.88,8.9941752]
[1769646925908,5.52778884,124.91,124.86,3.38794472]
[1769646926309,3.5581352,124.91,124.86,3.38794472]
[1769646926909,10.7725352,124.93,124.87,5.35759836]
[1769646927114,10.7725352,124.93,124.88,3.38794472]
[1769646929214,12.74218884,124.93,124.86,5.29559482]
[1769646929713,12.74498589,124.93,124.86,5.29839187]
[1769646929912,1.97245069,124.92,124.86,3.32594118]
[1769646930720,5.53058589,124.93,124.87,10.54364118]
[1769646931420,5.36597764,124.92,124.87,3.32594118]
[1769646931918,1.97245069,124.91,124.87,3.32594118]
[1769646932122,5.36597764,124.91,124.85,3.32594118]
[1769646932424,1.97245069,124.89,124.85,3.32594118]
[1769646932714,1.97245069,124.89,124.84,7.2195]
[1769646932715,5.36597764,124.89,124.84,7.2195]
[1769646932915,1.97245069,124.87,124.83,3.32594118]
[1769646933823,1.97245069,124.88,124.83,3.32594118]
[1769646934026,1.97245069,124.88,124.83,10.54614118]
[1769646934716,1.97245069,124.88,124.81,330.22674118]
[1769646934717,1.97245069,124.87,124.81,330.22674118]
[1769646935016,1.97245069,124.86,124.81,3.32594118]
[1769646935221,3.39352695,124.85,124.79,3.32594118]
[1769646935408,5.36597764,124.85,124.79,3.32594118]
[1769646935613,3.39352695,124.85,124.8,1.97245069]
[1769646935814,3.39352695,124.85,124.8,5.29839187]
[1769646936120,1.97245069,124.86,124.8,5.29839187]
[1769646936417,1.97245069,124.86,124.77,112.3662]
[1769646936418,1.97245069,124.84,124.77,1.97245069]
[1769646936626,5.36597764,124.83,124.76,1.97245069]
[1769646937013,1.97245069,124.82,124.76,7.2237]
[1769646937520,1.97245069,124.82,124.74,7.2254]
[1769646937521,9.19385069,124.81,124.74,7.2254]
[1769646937720,9.19385069,124.81,124.74,9.19785069]
[1769646938116,12.58737764,124.81,124.74,9.19785069]
[1769646938319,5.36597764,124.81,124.75,10.55044118]
[1769646938522,5.36597764,124.81,124.75,12.52289187]
[1769646938718,1.97245069,124.83,124.76,3.32594118]
[1769646938924,12.58567764,124.84,124.77,9.19605069]
[1769646939222,10.61322695,124.84,124.77,9.19605069]
[1769646939422,12.58567764,124.84,124.77,9.19605069]
[1769646939817,12.58567764,124.84,124.77,1.97245069]
[1769646940016,5.36597764,124.83,124.77,1.97245069]
[1769646940423,1.97245069,124.81,124.74,3.32594118]
[1769646940626,5.36597764,124.78,124.71,1.97245069]
[1769646941323,1.97245069,124.8,124.73,1.97245069]
[1769646941527,5.36597764,124.8,124.73,1.97245069]
[1769646942026,1.97245069,124.82,124.75,5.29839187]
[1769646942224,5.36597764,124.83,124.76,1.97245069]
[1769646942424,3.39352695,124.82,124.75,5.29839187]
[1769646942617,3.39352695,124.81,124.75,5.29839187]
[1769646943124,5.36597764,124.81,124.75,3.32594118]
[1769646943320,5.36597764,124.81,124.75,5.29839187]
[1769646943824,5.36597764,124.81,124.74,9.19775069]
[1769646944726,3.39352695,124.81,124.75,1.97245069]
[1769646945228,10.61362695,124.84,124.78,5.29839187]
[1769646945728,10.61362695,124.84,124.79,1.97245069]
[1769646947729,10.61362695,124.84,124.78,5.29839187]
[1769646948235,3.39352695,124.83,124.77,9.19595069]
[1769646948634,3.39352695,124.83,124.77,12.52189187]
[1769646948930,12.58477764,124.86,124.78,12.52139187]
[1769646949131,12.58477764,124.86,124.79,1.97245069]
[1769646949426,3.39352695,124.85,124.79,1.97245069]
[1769646949631,10.61262695,124.85,124.79,1.97245069]
[1769646950928,10.61322695,124.84,124.76,322.7038]
[1769646951134,3.39352695,124.83,124.76,29.19625069]
[1769646951335,5.36597764,124.83,124.77,319.96]
[1769646952029,12.58627764,124.83,124.77,319.96]
[1769646952229,3.39352695,124.82,124.76,341.93245069]
[1769646952440,3.39352695,124.82,124.76,321.93245069]
[1769646953334,10.61452695,124.82,124.76,321.93245069]
[1769646953533,10.61452695,124.82,124.76,1.97245069]
[1769646953734,10.61452695,124.82,124.76,321.95245069]
[1769646954232,12.58797764,124.8,124.73,12.52389187]
[1769646955834,5.39013751,124.78,124.71,9.19935069]
[1769646956132,5.39013751,124.78,124.71,5.52944255]
[1769646956332,3.41768682,124.78,124.72,12.75604255]
[1769646956528,3.41768682,124.78,124.73,1.97245069]
[1769646960329,10.63968682,124.8,124.76,1.97245069]
[1769646961240,10.63968682,124.8,124.75,1.97245069]
[1769646961439,10.64038682,124.79,124.72,330.82349186]
[1769646961639,10.64038682,124.79,124.74,1.97245069]
[1769646963533,7.2232,124.78,124.74,1.97245069]
[1769646964542,7.2232,124.78,124.73,1.97245069]
[1769646965741,7.2232,124.78,124.74,1.97245069]
[1769646966440,3.41768682,124.79,124.74,1.97245069]
[1769646967745,3.41768682,124.79,124.73,7.226]
[1769646967939,3.41768682,124.79,124.74,1.97245069]
[1769646968136,10.64048682,124.79,124.74,1.97245069]
[1769646969050,3.41768682,124.77,124.73,1.97245069]
[1769646969635,7.2232,124.78,124.73,1.97245069]
[1769646970345,3.41768682,124.79,124.74,1.97245069]
[1769646970539,3.41768682,124.79,124.75,1.97245069]
[1769646970739,3.41768682,124.81,124.76,1.97245069]
[1769646971237,7.222,124.8,124.75,5.52944255]